fUSD/lending_fUSD_20260612
["ID","MTS","AMOUNT","RATE_DAILY","PERIOD"]
[424910665,1781267440000,-500.0,0.00013699,2]
[424910661,1781267440000,-500.0,0.00013699,2]
[424910671,1781267440000,-500.0,0.00013699,2]
[424910716,1781267440000,-1205.93,0.00013753,2]
[424910673,1781267440000,-500.0,0.00013699,2]
[424910679,1781267440000,-500.0,0.00013699,2]
[424910690,1781267440000,-500.0,0.00013699,2]
[424910695,1781267440000,-500.0,0.00013699,2]
[424910683,1781267440000,-500.0,0.00013699,2]
[424910688,1781267440000,-500.0,0.00013699,2]
[424910686,1781267440000,-500.0,0.00013699,2]
[424910698,1781267440000,-500.0,0.00013699,2]
[424910700,1781267440000,-500.0,0.00013699,2]
[424910703,1781267440000,-473.32,0.000137,2]
[424910677,1781267440000,-500.0,0.00013699,2]
[424910755,1781267440000,-300.02,0.00014426,2]
[424910784,1781267440000,-163.0,0.00014702,2]
[424910770,1781267440000,-300.02,0.00014587,2]
[424910832,1781267440000,-150.0,0.00014939,2]
[424910837,1781267440000,-500.0,0.00014999,2]
[424910839,1781267440000,-300.0,0.00014999,2]
[424910844,1781267440000,-666.0,0.00014999,2]
[424910841,1781267440000,-300.0,0.00014999,2]
[424910846,1781267440000,-300.0,0.00014999,2]
[424910849,1781267440000,-300.0,0.00014999,2]
[424910853,1781267440000,-784.5147072,0.00015,2]
[424910856,1781267440000,-4560.3861017,0.00015,2]
[424910824,1781267440000,-977.19,0.00014899,2]
[424910858,1781267440000,-254.96217143,0.00015,2]
[424910863,1781267440000,-803.85,0.00015003,2]
[424910867,1781267440000,-1555.5,0.00015059,2]
[424910873,1781267440000,-784.5147072,0.000152,2]
[424910864,1781267440000,-1205.93,0.00015003,2]
[424910868,1781267440000,-900.0,0.00015068,2]
[424910871,1781267440000,-10000.0,0.00015094,2]
[424910876,1781267440000,-4560.3861017,0.000152,2]
[424910768,1781267440000,-304.21,0.00014526,2]
[424910878,1781267440000,-473.32,0.000152,2]
[424910861,1781267440000,-918.98,0.00015,2]
[424910829,1781267440000,-5800.0,0.000149,2]
[424910851,1781267440000,-300.0,0.00014999,2]
[424910827,1781267440000,-25000.0,0.000149,3]
[424910834,1781267440000,-500.0,0.00014999,2]
[424910772,1781267440000,-151.0,0.0001463,2]
[424910777,1781267440000,-300.02,0.0001466,2]
[424910779,1781267440000,-304.21,0.00014662,2]
[424910782,1781267440000,-163.0,0.00014702,2]
[424910787,1781267440000,-151.0,0.00014702,2]
[424910790,1781267440000,-151.0,0.00014702,2]
[424910793,1781267440000,-151.0,0.00014702,2]
[424910798,1781267440000,-21934.39828207,0.00014756,2]
[424910805,1781267440000,-5800.0,0.00014841,2]
[424910775,1781267440000,-5885.84052227,0.00014645,2]
[424910822,1781267440000,-5800.0,0.00014891,2]
[424910800,1781267440000,-304.21,0.00014784,2]
[424910807,1781267440000,-5800.0,0.00014849,2]
[424910810,1781267440000,-5800.0,0.00014858,2]
[424910812,1781267440000,-5800.0,0.00014866,2]
[424910803,1781267440000,-300.02,0.00014794,2]
[424910815,1781267440000,-5800.0,0.00014874,2]
[424910817,1781267440000,-200.0,0.0001488,2]
[424910820,1781267440000,-5800.0,0.00014883,2]
[424910795,1781267440000,-300.02,0.00014729,2]
[424910957,1781267441000,-298.04,0.000162,2]
[424910969,1781267441000,-152.0,0.00016438,2]
[424910959,1781267441000,-200.0,0.00016296,2]
[424910954,1781267441000,-12835.84,0.000162,2]
[424910933,1781267441000,-1672.7364795,0.00016155,2]
[424910930,1781267441000,-8291.52,0.00016116,2]
[424910938,1781267441000,-300.0,0.00016199,2]
[424910952,1781267441000,-25758.82,0.000162,2]
[424910935,1781267441000,-300.0,0.00016199,2]
[424910949,1781267441000,-4560.3861017,0.000162,2]
[424910962,1781267441000,-4560.3861017,0.000164,2]
[424910986,1781267441000,-152.0,0.00016438,2]
[424910967,1781267441000,-1305.7,0.00016438,2]
[424910971,1781267441000,-152.0,0.00016438,2]
[424910973,1781267441000,-152.0,0.00016438,2]
[424910984,1781267441000,-152.0,0.00016438,2]
[424910975,1781267441000,-152.0,0.00016438,2]
[424910972,1781267441000,-152.0,0.00016438,2]
[424910988,1781267441000,-152.0,0.00016438,2]
[424910980,1781267441000,-152.0,0.00016438,2]
[424910981,1781267441000,-152.0,0.00016438,2]
[424910964,1781267441000,-6348.6,0.00016426,2]
[424910928,1781267441000,-4560.3861017,0.000161,2]
[424910894,1781267441000,-784.5147072,0.000156,2]
[424910940,1781267441000,-666.0,0.00016199,2]
[424910977,1781267441000,-152.0,0.00016438,2]
[424910881,1781267441000,-784.5147072,0.000153,2]
[424910899,1781267441000,-5530.0,0.000156,3]
[424910897,1781267441000,-4560.3861017,0.000156,2]
[424910901,1781267441000,-1613.0535,0.00015607,2]
[424910887,1781267441000,-14350.0,0.000153,2]
[424910892,1781267441000,-4560.3861017,0.000155,2]
[424910890,1781267441000,-784.5147072,0.000155,2]
[424910885,1781267441000,-4560.3861017,0.000153,2]
[424910903,1781267441000,-9590.30759836,0.00015634,2]
[424910906,1781267441000,-2129.0,0.00015765,2]
[424910911,1781267441000,-4560.3861017,0.000158,2]
[424910909,1781267441000,-2843.77201288,0.000158,5]
[424910916,1781267441000,-4560.3861017,0.000159,2]
[424910914,1781267441000,-5885.84052227,0.00015861,2]
[424910918,1781267441000,-5530.0,0.000159,5]
[424910920,1781267441000,-150.0,0.00015908,2]
[424910923,1781267441000,-9582.32114343,0.0001594,2]
[424910926,1781267441000,-300.0,0.00016,2]
[424910942,1781267441000,-300.0,0.00016199,2]
[424910945,1781267441000,-300.0,0.00016199,2]
[424910947,1781267441000,-300.0,0.00016199,2]
[424910990,1781267441000,-900.0,0.00016438,2]
[424911095,1781267441000,-402.0,0.00018339,2]
[424910994,1781267441000,-1000.0,0.00016509,2]
[424911057,1781267441000,-300.0,0.00017999,2]
[424911055,1781267441000,-1865.36488656,0.00017799,2]
[424911060,1781267441000,-300.0,0.00017999,2]
[424911062,1781267441000,-666.0,0.00017999,2]
[424911064,1781267441000,-300.0,0.00017999,2]
[424911067,1781267441000,-300.0,0.00017999,2]
[424911072,1781267441000,-1725.89249135,0.00018,2]
[424911070,1781267441000,-300.0,0.00017999,2]
[424911083,1781267441000,-314.982974,0.00018182,7]
[424911078,1781267441000,-504.0,0.00018,2]
[424911074,1781267441000,-8722.0946288,0.00018,2]
[424911076,1781267441000,-350.0,0.00018,2]
[424911085,1781267441000,-1725.89249135,0.000182,2]
[424911088,1781267441000,-8722.0946288,0.000182,2]
[424911099,1781267441000,-1934.38338736,0.00018347,2]
[424911097,1781267441000,-1228.524,0.00018339,2]
[424911090,1781267441000,-5885.84052227,0.00018291,2]
[424911093,1781267441000,-1275.0,0.00018339,2]
[424911102,1781267441000,-2155.17,0.00018356,2]
[424911104,1781267441000,-1725.89249135,0.000184,2]
[424910992,1781267441000,-500.0,0.00016468,2]
[424911046,1781267441000,-152.0,0.00017728,2]
[424911048,1781267441000,-152.0,0.00017728,2]
[424911081,1781267441000,-1000.0,0.00018138,2]
[424911053,1781267441000,-151.0,0.00017728,2]
[424910997,1781267441000,-1734.62772924,0.00016703,2]
[424911043,1781267441000,-152.0,0.00017728,2]
[424911001,1781267441000,-175.68,0.00016767,2]
[424911005,1781267441000,-473.32,0.000168,2]
[424911010,1781267441000,-5885.84052227,0.00017076,2]
[424911003,1781267441000,-21934.39828207,0.00016777,2]
[424911008,1781267441000,-368.3,0.00016838,2]
[424910999,1781267441000,-168.44,0.00016712,2]
[424911014,1781267441000,-1798.80895522,0.00017251,2]
[424911016,1781267441000,-2400.0,0.00017281,2]
[424911019,1781267441000,-900.0,0.00017281,7]
[424911012,1781267441000,-402.13,0.00017192,2]
[424911027,1781267441000,-3900.0,0.000174,5]
[424911050,1781267441000,-151.0,0.00017728,2]
[424911038,1781267441000,-152.0,0.00017728,2]
[424911034,1781267441000,-152.0,0.00017728,2]
[424911036,1781267441000,-152.0,0.00017728,2]
[424911041,1781267441000,-152.0,0.00017728,2]
[424911029,1781267441000,-298.0,0.00017479,2]
[424911025,1781267441000,-4621.0,0.000174,5]
[424911023,1781267441000,-730.07982513,0.00017343,2]
[424911032,1781267441000,-500.0,0.00017534,2]
[424911193,1781267442000,-1030.0,0.00019443,2]
[424911168,1781267442000,-8722.0946288,0.000193,2]
[424911161,1781267442000,-200.0,0.0001918,2]
[424911177,1781267442000,-300.0,0.00019338,2]
[424911165,1781267442000,-1725.89249135,0.000193,2]
[424911179,1781267442000,-300.0,0.00019338,2]
[424911181,1781267442000,-361.76113529,0.00019338,2]
[424911184,1781267442000,-22422.43006691,0.00019339,7]
[424911188,1781267442000,-200.0,0.00019443,2]
[424911186,1781267442000,-207.0,0.00019339,2]
[424911199,1781267442000,-151.0,0.00019443,2]
[424911224,1781267442000,-151.0,0.00019443,2]
[424911197,1781267442000,-1068.11,0.00019443,2]
[424911195,1781267442000,-151.0,0.00019443,2]
[424911201,1781267442000,-1107.63007,0.00019443,2]
[424911203,1781267442000,-151.0,0.00019443,2]
[424911206,1781267442000,-1148.61238259,0.00019443,2]
[424911219,1781267442000,-1235.18214925,0.00019443,2]
[424911217,1781267442000,-271.37525311,0.00019443,2]
[424911221,1781267442000,-151.0,0.00019443,2]
[424911208,1781267442000,-151.0,0.00019443,2]
[424911210,1781267442000,-1191.11104074,0.00019443,2]
[424911163,1781267442000,-307.97603717,0.00019271,2]
[424911191,1781267442000,-314.1896268,0.00019443,2]
[424911174,1781267442000,-671.10899491,0.00019338,2]
[424911114,1781267442000,-8722.0946288,0.000185,2]
[424911170,1781267442000,-300.0,0.00019338,2]
[424911225,1781267442000,-151.0,0.00019443,2]
[424911106,1781267442000,-8722.0946288,0.000184,2]
[424911109,1781267442000,-1305.7,0.0001841,2]
[424911125,1781267442000,-1725.89249135,0.000187,2]
[424911111,1781267442000,-1725.89249135,0.000185,2]
[424911119,1781267442000,-9590.30759836,0.00018558,2]
[424911127,1781267442000,-8722.0946288,0.000187,2]
[424911121,1781267442000,-913.63310323,0.00018586,2]
[424911116,1781267442000,-311.970532,0.00018513,7]
[424911123,1781267442000,-473.32,0.000186,2]
[424911130,1781267442000,-21934.39828207,0.00018797,2]
[424911172,1781267442000,-300.0,0.00019338,2]
[424911132,1781267442000,-200.0,0.00018816,3]
[424911137,1781267442000,-1725.89249135,0.000189,2]
[424911151,1781267442000,-250.0,0.00019178,2]
[424911146,1781267442000,-1725.89249135,0.000191,2]
[424911142,1781267442000,-504.0,0.00019,2]
[424911144,1781267442000,-162.89,0.00019051,2]
[424911155,1781267442000,-250.0,0.00019178,2]
[424911139,1781267442000,-8722.0946288,0.000189,2]
[424911153,1781267442000,-250.0,0.00019178,2]
[424911149,1781267442000,-8722.0946288,0.000191,2]
[424911157,1781267442000,-266.62628395,0.00019178,2]
[424911159,1781267442000,-191.74591394,0.00019178,2]
[424911135,1781267442000,-2005.9555727,0.00018895,2]
[424911215,1781267442000,-151.0,0.00019443,2]
[424911284,1781267442000,-1428.38747117,0.00019443,2]
[424911212,1781267442000,-578.20924308,0.00019443,2]
[424911287,1781267442000,-4853.7438341,0.00019443,2]
[424911289,1781267442000,-500.0,0.00019443,2]
[424911292,1781267442000,-151.0,0.00019443,2]
[424911295,1781267442000,-500.0,0.00019443,2]
[424911291,1781267442000,-151.0,0.00019443,2]
[424911297,1781267442000,-152.0,0.00019443,2]
[424911299,1781267442000,-151.0,0.00019443,2]
[424911309,1781267442000,-721.12765534,0.00019443,2]
[424911311,1781267442000,-500.0,0.00019443,2]
[424911303,1781267442000,-693.39197629,0.00019443,2]
[424911301,1781267442000,-1481.2378076,0.00019443,2]
[424911332,1781267442000,-151.0,0.00019443,2]
[424911313,1781267442000,-152.0,0.00019443,2]
[424911305,1781267442000,-151.0,0.00019443,2]
[424911315,1781267442000,-151.0,0.00019443,2]
[424911318,1781267442000,-1536.04360648,0.00019443,2]
[424911320,1781267442000,-151.0,0.00019443,2]
[424911322,1781267442000,-500.0,0.00019443,2]
[424911324,1781267442000,-500.0,0.00019443,2]
[424911326,1781267442000,-152.0,0.00019443,2]
[424911328,1781267442000,-151.0,0.00019443,2]
[424911330,1781267442000,-192.33143538,0.00019443,2]
[424911337,1781267442000,-500.0,0.00019443,2]
[424911335,1781267442000,-500.0,0.00019443,2]
[424911307,1781267442000,-500.0,0.00019443,2]
[424911282,1781267442000,-152.0,0.00019443,2]
[424911227,1781267442000,-209.40437684,0.00019443,2]
[424911278,1781267442000,-500.0,0.00019443,2]
[424911230,1781267442000,-151.94035637,0.00019443,2]
[424911243,1781267442000,-2080.17592889,0.00019443,2]
[424911241,1781267442000,-151.0,0.00019443,2]
[424911236,1781267442000,-209.40437684,0.00019443,2]
[424911234,1781267442000,-1280.88388877,0.00019443,2]
[424911245,1781267442000,-500.0,0.00019443,2]
[424911276,1781267442000,-209.40437684,0.00019443,2]
[424911248,1781267442000,-152.0,0.00019443,2]
[424911239,1781267442000,-174.61919141,0.00019443,2]
[424911251,1781267442000,-151.0,0.00019443,2]
[424911253,1781267442000,-1328.27659266,0.00019443,2]
[424911259,1781267442000,-151.0,0.00019443,2]
[424911232,1781267442000,-151.0,0.00019443,2]
[424911261,1781267442000,-151.0,0.00019443,2]
[424911264,1781267442000,-152.0,0.00019443,2]
[424911255,1781267442000,-209.40437684,0.00019443,2]
[424911262,1781267442000,-151.0,0.00019443,2]
[424911263,1781267442000,-500.0,0.00019443,2]
[424911266,1781267442000,-151.0,0.00019443,2]
[424911269,1781267442000,-200.0,0.00019443,2]
[424911268,1781267442000,-1377.42282658,0.00019443,2]
[424911271,1781267442000,-160.0,0.00019443,2]
[424911280,1781267442000,-151.0,0.00019443,2]
[424911274,1781267442000,-151.0,0.00019443,2]
[424911257,1781267442000,-151.0,0.00019443,2]
[424911426,1781267443000,-300.0,0.00019532,2]
[424911420,1781267443000,-5885.84052227,0.00019506,2]
[424911407,1781267443000,-300.0,0.00019499,2]
[424911422,1781267443000,-300.0,0.00019532,2]
[424911405,1781267443000,-300.0,0.00019499,2]
[424911402,1781267443000,-151.0,0.00019498,2]
[424911409,1781267443000,-300.0,0.00019499,2]
[424911411,1781267443000,-1725.89249135,0.000195,2]
[424911400,1781267443000,-271.37525311,0.00019498,2]
[424911413,1781267443000,-8722.0946288,0.000195,2]
[424911424,1781267443000,-300.0,0.00019532,2]
[424911447,1781267443000,-151.0,0.00019718,2]
[424911430,1781267443000,-151.0,0.00019553,2]
[424911432,1781267443000,-271.37525311,0.00019608,2]
[424911437,1781267443000,-271.37525311,0.00019663,2]
[424911434,1781267443000,-151.0,0.00019608,2]
[424911439,1781267443000,-151.0,0.00019663,2]
[424911441,1781267443000,-1725.89249135,0.000197,2]
[424911443,1781267443000,-8722.0946288,0.000197,2]
[424911445,1781267443000,-271.37525311,0.00019718,2]
[424911452,1781267443000,-151.0,0.00019773,2]
[424911458,1781267443000,-151.0,0.00019828,2]
[424911449,1781267443000,-271.37525311,0.00019773,2]
[424911415,1781267443000,-368.105842,0.00019504,7]
[424911428,1781267443000,-271.37525311,0.00019553,2]
[424911398,1781267443000,-602.0,0.00019452,2]
[424911365,1781267443000,-151.0,0.00019443,2]
[424911387,1781267443000,-151.0,0.00019443,2]
[424911454,1781267443000,-977.19,0.00019775,2]
[424911339,1781267443000,-152.0,0.00019443,2]
[424911341,1781267443000,-151.0,0.00019443,2]
[424911343,1781267443000,-151.0,0.00019443,2]
[424911345,1781267443000,-500.0,0.00019443,2]
[424911348,1781267443000,-500.0,0.00019443,2]
[424911352,1781267443000,-151.0,0.00019443,2]
[424911350,1781267443000,-152.0,0.00019443,2]
[424911354,1781267443000,-151.0,0.00019443,2]
[424911359,1781267443000,-500.0,0.00019443,2]
[424911361,1781267443000,-152.0,0.00019443,2]
[424911395,1781267443000,-500.0,0.00019443,2]
[424911368,1781267443000,-500.0,0.00019443,2]
[424911363,1781267443000,-151.0,0.00019443,2]
[424911370,1781267443000,-152.0,0.00019443,2]
[424911373,1781267443000,-500.0,0.00019443,2]
[424911378,1781267443000,-500.0,0.00019443,2]
[424911380,1781267443000,-152.0,0.00019443,2]
[424911376,1781267443000,-151.0,0.00019443,2]
[424911382,1781267443000,-151.0,0.00019443,2]
[424911384,1781267443000,-151.0,0.00019443,2]
[424911391,1781267443000,-500.0,0.00019443,2]
[424911393,1781267443000,-500.0,0.00019443,2]
[424911389,1781267443000,-500.0,0.00019443,2]
[424911357,1781267443000,-500.0,0.00019443,2]
[424911463,1781267443000,-151.0,0.00019883,2]
[424911460,1781267443000,-271.37525311,0.00019883,2]
[424911456,1781267443000,-271.37525311,0.00019828,2]
[424911527,1781267443000,-2038.0,0.0002,2]
[424911520,1781267443000,-297.0,0.0002,2]
[424911535,1781267443000,-878.0,0.0002,2]
[424911530,1781267443000,-336.0,0.0002,2]
[424911532,1781267443000,-504.0,0.0002,3]
[424911537,1781267443000,-1194.0,0.0002,2]
[424911539,1781267443000,-1009.0,0.0002,2]
[424911538,1781267443000,-270.0,0.0002,2]
[424911536,1781267443000,-151.0,0.0002,2]
[424911545,1781267443000,-473.32,0.0002,2]
[424911560,1781267443000,-2000.0,0.00020063,2]
[424911524,1781267443000,-187.0,0.0002,2]
[424911554,1781267443000,-3000.0,0.00020057,2]
[424911552,1781267443000,-3000.0,0.00020057,2]
[424911556,1781267443000,-600.0,0.00020057,2]
[424911548,1781267443000,-3000.0,0.00020057,2]
[424911541,1781267443000,-1931.37,0.0002,2]
[424911558,1781267443000,-2000.0,0.00020063,2]
[424911563,1781267443000,-2000.0,0.00020063,2]
[424911565,1781267443000,-2000.0,0.00020063,2]
[424911567,1781267443000,-2000.0,0.00020063,2]
[424911569,1781267443000,-2000.0,0.00020063,2]
[424911573,1781267443000,-2000.0,0.00020063,2]
[424911571,1781267443000,-2000.0,0.00020063,2]
[424911543,1781267443000,-347.0,0.0002,2]
[424911522,1781267443000,-395.0,0.0002,2]
[424911550,1781267443000,-3000.0,0.00020057,2]
[424911511,1781267443000,-300.0,0.00019999,2]
[424911465,1781267443000,-184.0418703,0.000199,2]
[424911518,1781267443000,-400.0,0.0002,2]
[424911470,1781267443000,-151.0,0.00019938,2]
[424911467,1781267443000,-271.37525311,0.00019938,2]
[424911472,1781267443000,-16904.35032583,0.0001994,2]
[424911487,1781267443000,-151.0,0.00019991,2]
[424911478,1781267443000,-305.71184498,0.00019967,2]
[424911476,1781267443000,-300.0,0.00019967,2]
[424911489,1781267443000,-217.15233878,0.00019991,2]
[424911480,1781267443000,-300.0,0.00019967,2]
[424911483,1781267443000,-200.0,0.00019991,2]
[424911491,1781267443000,-151.94035637,0.00019991,2]
[424911474,1781267443000,-25287.89710465,0.0001994,2]
[424911493,1781267443000,-217.15233878,0.00019991,2]
[424911516,1781267443000,-1979.95626,0.0002,2]
[424911485,1781267443000,-314.1896268,0.00019991,2]
[424911509,1781267443000,-151.0,0.00019993,2]
[424911507,1781267443000,-271.37525321,0.00019993,2]
[424911505,1781267443000,-200.0,0.00019991,2]
[424911501,1781267443000,-151.0,0.00019991,2]
[424911514,1781267443000,-300.0,0.00019999,2]
[424911503,1781267443000,-151.0,0.00019991,2]
[424911495,1781267443000,-181.08010149,0.00019991,2]
[424911497,1781267443000,-2157.14243826,0.00019991,2]
[424911499,1781267443000,-217.15233878,0.00019991,2]
[424911660,1781267444000,-5700.0,0.000209,7]
[424911639,1781267444000,-200.0,0.00020539,2]
[424911637,1781267444000,-151.0,0.00020539,2]
[424911647,1781267444000,-173.24811452,0.0002058,2]
[424911649,1781267444000,-207.892926,0.00020709,2]
[424911641,1781267444000,-150.0,0.0002058,2]
[424911645,1781267444000,-150.0,0.0002058,2]
[424911643,1781267444000,-150.0,0.0002058,2]
[424911658,1781267444000,-602.0,0.00020821,2]
[424911656,1781267444000,-21934.39828207,0.00020818,2]
[424911654,1781267444000,-217.15233878,0.00020812,2]
[424911701,1781267444000,-187.0,0.00021,2]
[424911665,1781267444000,-2250.0,0.00020905,2]
[424911671,1781267444000,-2000.0,0.00020913,2]
[424911678,1781267444000,-2000.0,0.00020913,2]
[424911676,1781267444000,-2000.0,0.00020913,2]
[424911673,1781267444000,-2000.0,0.00020913,2]
[424911669,1781267444000,-2000.0,0.00020913,2]
[424911667,1781267444000,-2000.0,0.00020913,2]
[424911680,1781267444000,-2000.0,0.00020913,2]
[424911683,1781267444000,-2000.0,0.00020913,2]
[424911697,1781267444000,-297.0,0.00021,2]
[424911634,1781267444000,-151.0,0.00020539,2]
[424911663,1781267444000,-3000.0,0.00020905,2]
[424911630,1781267444000,-225.18697532,0.00020539,2]
[424911578,1781267444000,-2000.0,0.00020063,2]
[424911628,1781267444000,-2236.95670847,0.00020539,2]
[424911699,1781267444000,-395.0,0.00021,2]
[424911580,1781267444000,-2000.0,0.00020063,2]
[424911576,1781267444000,-2000.0,0.00020063,2]
[424911583,1781267444000,-2000.0,0.00020063,2]
[424911585,1781267444000,-2000.0,0.00020063,2]
[424911589,1781267444000,-2000.0,0.00020063,2]
[424911593,1781267444000,-2000.0,0.00020063,2]
[424911595,1781267444000,-2000.0,0.00020063,2]
[424911611,1781267444000,-296.48897898,0.00020375,2]
[424911591,1781267444000,-2000.0,0.00020063,2]
[424911597,1781267444000,-2000.0,0.00020063,2]
[424911632,1781267444000,-187.78006524,0.00020539,2]
[424911602,1781267444000,-500.0,0.0002011,2]
[424911604,1781267444000,-602.0,0.00020136,2]
[424911600,1781267444000,-1387.61,0.00020063,2]
[424911587,1781267444000,-2000.0,0.00020063,2]
[424911606,1781267444000,-152.0,0.00020375,2]
[424911615,1781267444000,-200.0,0.00020539,2]
[424911613,1781267444000,-1305.7,0.00020381,2]
[424911621,1781267444000,-225.18697532,0.00020539,2]
[424911624,1781267444000,-151.94035637,0.00020539,2]
[424911617,1781267444000,-314.1896268,0.00020539,2]
[424911619,1781267444000,-151.0,0.00020539,2]
[424911626,1781267444000,-225.18697532,0.00020539,2]
[424911608,1781267444000,-152.0,0.00020375,2]
[424911696,1781267444000,-3889.0,0.00021,2]
[424911652,1781267444000,-5885.84052227,0.00020721,2]
[424911687,1781267444000,-1979.95626,0.00021,2]
[424911752,1781267444000,-242.15909246,0.00021635,2]
[424911741,1781267444000,-1000.0,0.000214,2]
[424911750,1781267444000,-194.10935612,0.00021635,2]
[424911739,1781267444000,-262.15025503,0.000214,2]
[424911745,1781267444000,-602.0,0.00021506,2]
[424911742,1781267444000,-9590.30759836,0.00021483,2]
[424911744,1781267444000,-249.18247425,0.000215,2]
[424911747,1781267444000,-202.70711956,0.00021635,2]
[424911746,1781267444000,-314.1896268,0.00021635,2]
[424911753,1781267444000,-2405.55389863,0.00021635,2]
[424911764,1781267444000,-1931.37,0.00021673,2]
[424911740,1781267444000,-213.05101549,0.000214,2]
[424911760,1781267444000,-151.0,0.00021635,2]
[424911761,1781267444000,-151.0,0.00021635,2]
[424911757,1781267444000,-201.93286098,0.00021635,2]
[424911768,1781267444000,-150.0,0.00021918,2]
[424911755,1781267444000,-242.15909246,0.00021635,2]
[424911775,1781267444000,-215.0,0.00022,10]
[424911772,1781267444000,-34215.4197,0.0002194,7]
[424911779,1781267444000,-249.18247425,0.00022,2]
[424911777,1781267444000,-1979.95626,0.00022,2]
[424911783,1781267444000,-224.26422683,0.00022,2]
[424911781,1781267444000,-537.33,0.00022,7]
[424911702,1781267444000,-2038.0,0.00021,2]
[424911770,1781267444000,-1644.97038693,0.0002193,2]
[424911749,1781267444000,-151.94035637,0.00021635,2]
[424911765,1781267444000,-5000.0,0.00021918,2]
[424911728,1781267444000,-194.72792766,0.00021087,2]
[424911685,1781267444000,-411.51,0.00020913,2]
[424911738,1781267444000,-1227.0,0.00021339,2]
[424911692,1781267444000,-6111.0,0.00021,2]
[424911690,1781267444000,-15000.0,0.00021,2]
[424911694,1781267444000,-15000.0,0.00021,2]
[424911710,1781267444000,-1194.0,0.00021,2]
[424911708,1781267444000,-151.0,0.00021,2]
[424911707,1781267444000,-878.0,0.00021,2]
[424911712,1781267444000,-270.0,0.00021,2]
[424911713,1781267444000,-347.0,0.00021,2]
[424911705,1781267444000,-336.0,0.00021,2]
[424911715,1781267444000,-200.0,0.00021087,2]
[424911716,1781267444000,-314.1896268,0.00021087,2]
[424911704,1781267444000,-504.0,0.00021,4]
[424911727,1781267444000,-233.5188934,0.00021087,2]
[424911720,1781267444000,-151.94035637,0.00021087,2]
[424911722,1781267444000,-233.5188934,0.00021087,2]
[424911734,1781267444000,-150.0,0.00021333,2]
[424911733,1781267444000,-4554.56,0.00021273,2]
[424911735,1781267444000,-1275.0,0.00021339,2]
[424911731,1781267444000,-151.0,0.00021087,2]
[424911736,1781267444000,-382.0,0.00021339,2]
[424911725,1781267444000,-2319.72410669,0.00021087,2]
[424911723,1781267444000,-233.5188934,0.00021087,2]
[424911718,1781267444000,-152.72359966,0.00021087,2]
[424911730,1781267444000,-151.0,0.00021087,2]
[424911858,1781267445000,-725.0,0.00022226,7]
[424911864,1781267445000,-809.242,0.00022226,7]
[424911860,1781267445000,-725.0,0.00022226,7]
[424911856,1781267445000,-725.0,0.00022226,7]
[424911851,1781267445000,-725.0,0.00022226,7]
[424911853,1781267445000,-725.0,0.00022226,7]
[424911849,1781267445000,-725.0,0.00022226,7]
[424911847,1781267445000,-725.0,0.00022226,7]
[424911862,1781267445000,-725.0,0.00022226,7]
[424911866,1781267445000,-200.0,0.00022319,2]
[424911870,1781267445000,-1305.7,0.00022353,2]
[424911896,1781267445000,-300.0,0.000226,10]
[424911872,1781267445000,-157.33036761,0.00022375,2]
[424911884,1781267445000,-200.0,0.000225,2]